{"text_format":"3","workbook":"xlsx","n_sheets":1,"sheets":["Formular_Erhebung_SVGW_BW"],"not_rendered":{"images":1},"read":"whole","date_system":"1900"}

{"sheet":"Formular_Erhebung_SVGW_BW","index":0,"n_rows":43,"n_cols":10,"rows_kept":43,"merged":[[2,0,2,9],[3,1,3,9],[4,1,4,9],[5,1,5,9],[6,1,6,9],[7,1,7,9],[10,0,10,9],[19,1,21,1],[22,1,24,1],[25,1,30,1],[31,1,32,1],[33,0,33,9],[34,0,34,9],[35,0,35,1],[36,0,36,1],[37,0,37,1],[38,0,38,1],[39,0,39,9],[40,0,40,1],[42,1,42,9]]}
["Gemeinde Seltisberg"]
[]
["Deklaration SVGW-Belastungswerte BW\nAbwasser- und Wasser-Anschlussgebühren"]
["GesuchstellerIn:"]
["Projektbezeichnung"]
["Parzelle-Nr."]
["Strasse / Hausnummer"]
["Telefon"]
[]
["Verwendungszweck",null,"UG","EG","1.\nOG","2.\nOG","3.\nOG","TOTAL","BW\npro An-\nschluss","TOTAL\nBW"]
["A - Anschlüsse ½ Zoll"]
["WC-Spülkasten (Toilette)","Bad/",{"$nulls":5},{"$f":"SUM(C12:G12)","v":0},1,{"$f":"H12*I12","v":0}]
["Waschtisch, Wandbecken kalt / warm","Dusche/",{"$nulls":5},{"$f":"SUM(C13:G13)","v":0},2,{"$f":"H13*I13","v":0}]
["Waschtisch, Wandbecken nur kalt","WC",{"$nulls":5},0,1,0]
["Dusche kalt / warm",{"$nulls":6},0,4,0]
["Dusche nur kalt",{"$nulls":6},0,2,0]
["Badewanne kalt / warm",{"$nulls":6},0,6,0]
["Urinoir mit Spülkasten",{"$nulls":6},0,1,0]
["Urinoir Spülung automatisch",{"$nulls":6},0,3,0]
["Spülbecken, Ausgussbecken kalt / warm","Küche",{"$nulls":5},0,4,0]
["Haushaltgeschirrspülmaschine",{"$nulls":6},0,1,0]
["Getränkeautomat, Eismaschine",{"$nulls":6},0,1,0]
["Waschtrog kalt / warm","Wasch-\nraum",{"$nulls":5},0,4,0]
["Waschtrog nur kalt",{"$nulls":6},0,2,0]
["Haushaltwaschautomat (Waschmaschine)",{"$nulls":6},0,2,0]
["Stand-, Wandausguss / Ausgussbecken kalt / warm","Diverses",{"$nulls":5},0,4,0]
["Waschrinne (Anz. Armaturen) kalt / warm",{"$nulls":6},0,2,0]
["Waschrinne (Anz. Hahnen) kalt",{"$nulls":6},0,1,0]
["Bidet",{"$nulls":6},0,2,0]
["Coiffeurbrause",{"$nulls":6},0,2,0]
["Spülbecken kalt / warm",{"$nulls":6},0,4,0]
["Entnahmearmatur für Garten, Garage","Aussen",{"$nulls":5},0,5,0]
["Entnahmearmatur für Balkon, Terrasse",{"$nulls":6},0,2,0]
["B - Anschlüsse ¾ Zoll / Spezialinstallationen"]
["Verbraucher mit Anschlüssen grösser 1/2\" und/oder speziellen Durchflussleistun-gen (Spülbecken für Gewerbe, Badewanne, Schwimmbad, Entnahmearmatur für Garten, Garage, Löschposten, ..) sind immer gemäss Herstellerangabe nach Druckverlust zu berechnen.\nFür andere Anschlüsse gilt die Umrechnung: 0.1 l/s = 1 BW"]
[{"$nulls":7},{"$f":"SUM(C36:G36)","v":0},null,{"$f":"H36*I36","v":0}]
[{"$nulls":7},0,null,0]
[{"$nulls":7},0,null,0]
[{"$nulls":7},0,null,0]
["TOTAL"]
[{"$nulls":9},{"$f":"SUM(J12:J33)+SUM(J36:J39)","v":0}]
[]
["Datum / Unterschrift"]